Cogmind - Beta 13 @@@ ROGUE MODE // 2024.03.09 @ 14:09:00 Player: youngster Result: Destroyed by as-64835 with Assembled Heavy Rifle Performance ------------- Evolutions (0) 0 Regions Visited (3) 600 Robots Destroyed (17) 85 Value Destroyed (269) 269 Prototype IDs (37) 740 Alien Tech Used (0) 0 Bonus (300) 300 TOTAL SCORE: 1994 Bonus ------- Aligned with FarCom 300 Cogmind --------- Core Integrity 0/250 Matter 274/300 Energy 100/100 System Corruption 0% Temperature Cool (0) Movement Rolling (120) Ox1 Location -10/Exiles Parts ------- > --- POWER (1) -------- (None) > --- PROPULSION (2) --- Subdweller Monowheel Subdweller Monowheel > --- UTILITY (2) ------ High-capacity Storage Unit Light Armor Plating > --- WEAPON (2) ------- Datajack > --- INVENTORY (20) --- Nuclear Core Light Nuclear Core Light Fission Core Light Fission Core Light Treads Improved Terrain Scanner Seismic Detector Subdweller Laser Light Assault Rifle Scrap Shield Fragment (45) Peak State ------------ > --- POWER ------------ Ion Engine > --- PROPULSION ------- Light Treads Subdweller Monowheel > --- UTILITY ---------- Medium Storage Unit Light Armor Plating > --- WEAPON ----------- Subdweller Laser Assault Rifle > --- INVENTORY -------- Nuclear Core Light Nuclear Core Light Fission Core Subdweller Monowheel Improved Terrain Scanner Seismic Detector Light Assault Rifle Datajack Scrap Shield Fragment [Rating: 11] Favorites ----------- Power Ion Engine Engine Ion Engine Propulsion Light Treads Treads Light Treads Wheel Subdweller Monowheel Utility Small Storage Unit Device Seismic Detector Storage Small Storage Unit Hackware Hacking Suite Protection Light Armor Plating Weapon Assault Rifle Energy Gun EM Pulse Gun Ballistic Gun Assault Rifle Special Melee Weapon Datajack Build | -11 -10 -10 -10 ------- Run | Yrd Mat Min Exi Slots Evolved . | . . . . Power . | . . . . Propulsion . | . . . . Utility . | . . . . Weapon . | . . . . Parts Attached 24 | 6 12 3 3 Power 1 | 1 . . . Engine 1 | 1 . . . Core . | . . . . Reactor . | . . . . Propulsion 6 | 2 2 1 1 Treads 4 | 2 2 . . Leg . | . . . . Wheel 2 | . . 1 1 Hover . | . . . . Flight . | . . . . Utility 11 | 1 7 2 1 Device 4 | . 4 . . Storage 3 | 1 . 1 1 Processor . | . . . . Hackware 1 | . 1 . . Protection 3 | . 2 1 . Artifact . | . . . . Weapon 6 | 2 3 . 1 Energy Gun 3 | . 3 . . Energy Cannon . | . . . . Ballistic Gun 2 | 2 . . . Ballistic Cannon . | . . . . Launcher . | . . . . Special Weapon . | . . . . Impact Weapon . | . . . . Slashing Weapon . | . . . . Piercing Weapon . | . . . . Special Melee Weapon 1 | . . . 1 Unidentified Prototypes . | . . . . Parts Lost 5 | . 2 1 2 Power 1 | . . . 1 Propulsion 1 | . . 1 . Utility . | . . . . Weapon 3 | . 2 . 1 Highest Loss Streak 2 | . 1 1 2 To Critical Strikes . | . . . . Average Slot Usage (%) 96 | . 95 98 99 Engine 13 | . 14 14 13 Treads 20 | . 23 22 12 Wheel 4 | . . 3 15 Device 7 | . 10 8 . Storage 14 | . 14 14 14 Protection 6 | . 3 5 14 Energy Gun 9 | . 11 14 1 Ballistic Gun 15 | . 16 14 14 Special Melee Weapon 3 | . . . 12 Naked Turns . | . . . . Heaviest Build 51 | 14 17 24 51 Greatest Support 40 | 40 40 40 40 Greatest Overweight (x) 1 | 1 . 1 1 Average Overweight (x) . | . . . . Largest Inventory Capacity 20 | 8 8 10 20 Average Capacity 8 | 7 8 9 10 Most Carried 10 | 4 8 8 10 Average Carried 6 | 2 5 6 9 Final Capacity 20 | 8 8 10 20 Final Carried 10 | 4 7 7 10 Class Distribution -------------------- 100% | Mutant Dominant Class ---------------- Mutant | -10/Materials Mutant | -10/Mines Mutant | -10/Exiles Resources | -11 -10 -10 -10 ----------- Run | Yrd Mat Min Exi Matter Collected 563 | 302 204 57 . Remotely . | . . . . Salvage Created 468 | 180 221 67 . Parts 46 | 18 22 6 . Haulers Intercepted . | . . . . Recyclers Shooed . | . . . . Parts Field Recycled . | . . . . Retrieved Matter . | . . . . Parts Self-Destructed . | . . . . Prevented . | . . . . Kills | -11 -10 -10 -10 ------- Run | Yrd Mat Min Exi Combat Hostiles Destroyed 9 | . 6 3 . Guns 9 | . 6 3 . Classes Destroyed 7 | 2 4 1 . Worker 1 | . . 1 . Tunneler 5 | 5 . . . Recycler 1 | 1 . . . Operator 1 | . 1 . . Swarmer 5 | . 2 3 . Grunt 2 | . 2 . . Subdweller 2 | . 2 . . Best Kill Streak 5 | 5 2 4 . Combat Bots Only 3 | . 2 3 . Max Kills in Single Turn 2 | 2 1 2 . Gunslinging 1 | . . 1 . Exploded . | . . . . Melee . | . . . . Uniques/NPCs Destroyed . | . . . . Combat | -11 -10 -10 -10 -------- Run | Yrd Mat Min Exi Hostile Shots Fired 93 | . 61 12 20 Missed 25 | . 16 3 6 Damage Taken 1016 | . 732 67 217 Core 253 | . 175 8 70 Absorbed by Shields . | . . . . Core Remaining (%) 100 | 100 . . . Volleys Fired 42 | 7 29 4 2 Largest 2 | 2 2 2 1 Hottest 80 | 40 60 80 20 Shots Fired 82 | 14 58 8 2 Gun 82 | 14 58 8 2 Cannon . | . . . . Launcher . | . . . . Special . | . . . . Kinetic 58 | 14 38 4 2 Thermal 10 | . 6 4 . Explosive . | . . . . Electromagnetic 14 | . 14 . . Robot Hit Streak 11 | 3 11 10 . Robot Miss Streak 2 | 1 2 1 . Penetration Max . | . . . . Secondary Targets 2 | . 1 1 . Max Gunslinging Chain 1 | . 1 1 . Shots Hit Robots 59 | 7 42 6 4 Core Hits 27 | 7 16 4 . Critical Kills . | . . . . Critical Parts Destroyed . | . . . . Critical Strikes . | . . . . Melee Attacks 4 | . . . 4 Impact . | . . . . Slashing . | . . . . Piercing . | . . . . Sneak Attacks 4 | . . . 4 Combat Hostiles . | . . . . Follow-up Attacks . | . . . . Damage Inflicted 719 | 95 518 106 . Guns 719 | 95 518 106 . Cannons . | . . . . Explosions . | . . . . Melee . | . . . . Ramming . | . . . . Kinetic 445 | 95 321 29 . Thermal 144 | . 67 77 . Explosive . | . . . . Electromagnetic 130 | . 130 . . Impact . | . . . . Slashing . | . . . . Piercing . | . . . . Highest Corruption . | . . . . Average Corruption . | . . . . Corruption Purged . | . . . . Corruption Blocked . | . . . . Overload Shots . | . . . . Overflow Damage . | . . . . Projectiles . | . . . . Explosions . | . . . . Melee . | . . . . Knockbacks . | . . . . Impact . | . . . . Kinetic . | . . . . Secondary . | . . . . Self-Inflicted Damage . | . . . . Shots . | . . . . Rammed . | . . . . Targets Rammed . | . . . . Kicked . | . . . . Crushed . | . . . . Highest Temperature 138 | . 138 108 3 Average Temperature 48 | . 48 55 3 Received Heat Transfer 201 | . 141 . 60 Siege Activations . | . . . . Robots Corrupted . | . . . . Combat Hostiles . | . . . . Parts Fried . | . . . . Impact Corruptions . | . . . . Robots Melted . | . . . . Combat Hostiles . | . . . . Parts Melted 1 | . 1 . . Heat Transferred 250 | . 150 100 . Parts Sabotaged . | . . . . Parts Stolen . | . . . . Parts Stripped . | . . . . Power Chain Reactions . | . . . . Alert | -11 -10 -10 -10 ------- Run | Yrd Mat Min Exi Peak Influence 129 | 30 129 75 . Initial 19 | . 19 1 . Average 30 | 13 34 26 . Maximum Alert Level . | . . . . Low Security (%) 100 | 100 100 100 . Level 1 . | . . . . Level 2 . | . . . . Level 3 . | . . . . Level 4 . | . . . . Level 5 . | . . . . High Security . | . . . . Max Security . | . . . . Squads Dispatched . | . . . . Investigation . | . . . . Extermination . | . . . . Reinforcement . | . . . . Assault . | . . . . Garrison . | . . . . Intercept . | . . . . Searches Triggered . | . . . . Construction Impeded . | . . . . Haulers Reinforced . | . . . . Active Scanning Responses . | . . . . Cargo Convoy Interrupts . | . . . . Stealth | -11 -10 -10 -10 --------- Run | Yrd Mat Min Exi Distress Signals . | . . . . Communications Jammed . | . . . . Distress Signals . | . . . . Times Spotted 23 | . 13 3 7 Peak Tracking Total 9 | . 4 3 9 Tactical Retreats . | . . . . Traps | -11 -10 -10 -10 ------- Run | Yrd Mat Min Exi Traps Triggered . | . . . . Indirectly . | . . . . Trap Hack Attempts . | . . . . Triggered . | . . . . Disarmed . | . . . . Reprogrammed . | . . . . Reused . | . . . . Traps Extracted . | . . . . Installed . | . . . . Triggered . | . . . . Machines | -11 -10 -10 -10 ---------- Run | Yrd Mat Min Exi Machines Disabled 1 | . . . 1 Max in Single Turn 1 | . . . 1 Machines Repaired . | . . . . Machines Dismantled . | . . . . Machines Sabotaged . | . . . . Overloaded Fab Kills . | . . . . Hacking | -11 -10 -10 -10 --------- Run | Yrd Mat Min Exi Machines Accessed 5 | . 3 . 2 Terminals 3 | . 3 . . Fabricators . | . . . . Repair Stations . | . . . . Recycling Units . | . . . . Scanalyzers . | . . . . Garrison Access . | . . . . Total Hacks 12 | . 10 . 2 Successful 7 | . 5 . 2 Failed 4 | . 4 . . Catastrophic 1 | . 1 . . Database Lockouts 1 | . 1 . . Manual 10 | . 9 . 1 Terminals 10 | . 10 . . Fabricators . | . . . . Repair Stations . | . . . . Recycling Units . | . . . . Scanalyzers . | . . . . Garrison Access . | . . . . Terminal Hacks 5 | . 3 . 2 Record 1 | . . . 1 Robot Schematic 1 | . 1 . . Locate Traps 2 | . 2 . . Derelict Proto ID Bank 1 | . . . 1 Fabricator Hacks . | . . . . Repair Station Hacks . | . . . . Recycling Unit Hacks . | . . . . Scanalyzer . | . . . . Garrison Access Hacks . | . . . . Unauthorized Hacks 2 | . 2 . . Terminals 2 | . 2 . . Botnet 1 | . 1 . . Operators 1 | . 1 . . Fabricators . | . . . . Repair Stations . | . . . . Recycling Units . | . . . . Scanalyzers . | . . . . Garrison Access . | . . . . Data Cores Recovered . | . . . . Used . | . . . . Hacking Detections 2 | . 2 . . Full Trace Events 1 | . 1 . . Feedback Events . | . . . . Feedback Blocked . | . . . . Robot Schematics Acquired 1 | . 1 . . Robots Built . | . . . . Authchips . | . . . . Time . | . . . . Total Robot Build Rating . | . . . . Part Schematics Acquired . | . . . . Parts Built . | . . . . Authchips . | . . . . Time . | . . . . Total Part Build Rating . | . . . . Parts Repaired . | . . . . Time . | . . . . Parts Recycled . | . . . . Recycled Matter . | . . . . Retrieved Matter . | . . . . Retrieved Components . | . . . . Parts Scanalyzed . | . . . . Part Schematics Acquired . | . . . . Parts Damaged . | . . . . Bothacking | -11 -10 -10 -10 ------------ Run | Yrd Mat Min Exi Used RIF Installer . | . . . . Robots Hacked 4 | . . . 4 Non-combat 3 | . . . 3 Combat 1 | . . . 1 Robot Hacks Applied 4 | . . . 4 parse_system 4 | . . . 4 Relay Couplers Released . | . . . . Fabnet Peak Effective % . | . . . . Robots Rewired . | . . . . Allies Hacked . | . . . . Hacks Repelled . | . . . . Allies | -11 -10 -10 -10 -------- Run | Yrd Mat Min Exi Total Allies . | . . . . Largest Group . | . . . . Highest-Rated Group . | . . . . Highest-Rated Ally . | . . . . Total Orders . | . . . . Ally Attacks . | . . . . Total Damage . | . . . . Kills . | . . . . Allies Corrupted . | . . . . Allies Melted . | . . . . Intel | -11 -10 -10 -10 ------- Run | Yrd Mat Min Exi Robot Analysis Total . | . . . . Derelict Logs Recovered . | . . . . Drone Launches . | . . . . Drone Recoveries . | . . . . Exploration | -11 -10 -10 -10 ------------- Run | Yrd Mat Min Exi Turns Passed 1487 | 121 751 252 363 Spaces Moved 848 | 59 341 158 290 Core 7 | 7 . . . Treads 493 | 52 341 100 . Legs . | . . . . Wheels 348 | . . 58 290 Hover . | . . . . Flight . | . . . . Fastest Speed 50 | 50 160 120 110 Average Speed 142 | 149 160 147 119 Slowest Speed 240 | 160 160 240 120 Overloaded Moves . | . . . . Propulsion Burnouts . | . . . . Robots Hopped . | . . . . Cave-ins Triggered . | . . . . Exploration Rate (%) 35 | 3 38 37 64 Regions Visited 3 Branch Regions 2 Pre-discovered Areas 1 | . . . 1 Known Exits Taken . | . . . . Unknown Exits Taken 3 | 1 1 1 . Scrap Searched 2 | . . 2 . Spaces Dug . | . . . . Terrain Destroyed . | . . . . Melee . | . . . . Projectile . | . . . . AOE . | . . . . Terrain Rammed . | . . . . Walls Destroyed . | . . . . Machines Disabled . | . . . . Actions | -11 -10 -10 -10 --------- Run | Yrd Mat Min Exi Total 1034 | 75 488 168 303 Wait 97 | . 95 2 . Move 845 | 58 340 157 290 Hop . | . . . . Pick Up 15 | 4 7 1 3 Fast Attach 8 | 6 2 . . Attach 6 | . 5 1 . Detach 3 | . 3 . . Swap 10 | . 5 2 3 Drop 4 | . 2 1 1 Fire 42 | 7 29 4 2 Melee 4 | . . . 4 Ram . | . . . . Kick . | . . . . Crush . | . . . . Escape Stasis . | . . . . Rewire . | . . . . Trap . | . . . . Miscellaneous . | . . . . Route ------- -11/Scrapyard -10/Materials (discovered 2 exits: [*Mat] / [*Min]) -10/Mines (discovered 2 exits: [*Mat] / *Exi) -10/Exiles History --------- Turn | Location | Event 8 | -11/Scrapyard | Discovered new exit (range 16) 122 | -11/Scrapyard | Entered Materials 211 | -10/Materials | Central database locked down 298 | -10/Materials | Discovered new exit (range 7) 302 | -10/Materials | Build established: Mutant 374 | -10/Materials | Discovered new exit (range 7) 500 | -10/Materials | Derelicts attacked the area 629 | -10/Materials | Core integrity fell below 50% 873 | -10/Materials | Entered Mines 1067 | -10/Mines | Discovered new exit (range 11) 1119 | -10/Mines | Deemed a non-threat by the Exiles lab entrance 1120 | -10/Mines | Discovered new exit (range 5) 1125 | -10/Mines | Entered Exiles 1158 | -10/Exiles | Met 8R-AWN 1181 | -10/Exiles | Met EX-HEX 1219 | -10/Exiles | Met EX-BIN 1263 | -10/Exiles | Met EX-DEC 1296 | -10/Exiles | Learned location of Zion (-6) 1335 | -10/Exiles | Aligned with FarCom system 1336 | -10/Exiles | Given EX-Vault access code 1364 | -10/Exiles | Opened EX-Vault 1390 | -10/Exiles | Warned to stay clear of 0b10 Research branches 1446 | -10/Exiles | Attacked by the Exiles 1484 | -10/Exiles | Core integrity fell below 20% 1488 | -10/Exiles | Destroyed by as-64835 with Assembled Heavy Rifle Last Messages --------------- And if we have to leave here due to unforeseen circumstances, don't worry the FarCom system will continue to maintain contact via our distributed network. EX-BIN: And don't even think about spreading that code around. We're gonna change it right after you leave. Most certainly not to something like 1234 which I did last time as a little joke and some thief managed to sneak in here and steal a few of HEX's prototypes. 01445_ Machine disabled. 01446_ EXILES: Hostile robot within lab perimeter. Defensive protocols time, folks! 01471_ Dropped Med. Storage Unit. 01477_ Machine disabled. 01479_ Ion Engine destroyed. 01481_ as-48995 suffers critical hit (Destroy). 01481_ as-48995 destroyed. 01483_ Machine disabled. 01487_ Assault Rifle destroyed. Map ----- +----------------------------------------------------+ | ?????????????????????????????????????????????????? | | ?????????????????????????????????????????????????? | | ?????????????????????????????????????????????????? | | ?????????????????????????????????????????????????? | | ?????????????????????????????????????????????????? | | ?????????????????????????????????????????????????? | | ?????????????????????????????????????????????????? | | ?????????????????????????????????????????????????? | | ?????????????????????????????????????????????????? | | ?????????????????????????????????????????????????? | | ?????????????????????????????????????????????????? | | ?????????????????????????????????????????????????? | | ?????????????????????????????????????????????????? | | ???????????????? ???????????????????????????????? | | ?????????????? ??????????????????????????????? | | ??????????????# ?????????????????????????????? | | ??????????????# ?????????????????????????????? | | ???????????????# ?????????????######?????????? | | ???????????????# #######??????#!!! "#????????? | | ???????????????# #" ##?????# "?????????? | | ????????????????# #?????# "#????????? | | ????????????????##" ##???## ""#????????? | | ?????????????????"" #####" ""#????????? | | ???????????????????# ##" ""?????????? | | ????????????????????# #"" #??????????? | | ???????????????????????# @ #??????????? | | ???????????????????????####aaa ##?????????? | | ??????????????????????????### "#?????????? | | ????????????????????######## a% a ###???????? | | ????????????????????# !!""""" ##??????? | | ????????????????????#! "###"" ######?? | | ????????????????????#! "#?##" """### | | ????????????????????#! ##??#" | | ????????????????????# !""""""###???#"# | | ????????????????????##########?????#### | | ??????????????????????????????????????### | | ????????????????????????????????????????### | | ??????????????????????????????????????????## | | ???????????????????????????????????????????## | | ????????????????????????????????????????????##" | | ?????????????????????????????????????????????#""" | | ????????????????????????????????????????????##" | | ????????????????????????????????????????????#"" | | ???????????????????????????????????????????##""" | | ???????????????????????????????????????????#""" | | ???????????????????????????????????????????#""" | | ???????????????????????????????????????????#"" | | ???????????????????????????????????????????#""" | | ???????????????????????????????????????????#"" | | ???????????????????????????????????????????##"" | +----------------------------------------------------+ Best States ------------- Heat Dissipation 25 Energy Generation 10 Energy Capacity 250 Matter Stores 300 Matter Capacity 300 Sight Range 16 Terrain Scan Range 16 Terrain Scan Density 10 Armor Coverage 150 Evasion (%) 40 Recoil Reduction 2 Offensive Hacking 10 Item Schematics ----------------- None Robot Schematics ------------------ M-13 Machinist | -10/Materials | Hacked Fabricated ------------ Nothing Alien Tech Used ----------------- None Achievements -------------- None Challenges ------------ None Game ------ Seed MassAbsorptionNullifier Manual? 0 Play Time 00:12:24 Cumulative 430.6 hours Start 2024.03.09 @ 13:58:30 End 2024.03.09 @ 14:09:00 Sessions 1 Manual Loads 0 Difficulty Rogue Special Mode None Game No. 199 Rogue 199 Adventurer 0 Explorer 0 Win Type - Total 10 Types 7/0/1/1/0/0/0/1/0 Lore% 86 Gallery% 92 Achievement% 71 Wizard Run 0 Options --------- Layout 2 ASCII 0 Keyboard 1 Movement Vi Keybinds 0 Fullscreen 2 Font 18/Cog Map View 50x49 Zoom Use 0% Tactical HUD 1 Map Filters NONE Filters NONE Steam 0 RUN: 6179d948-3d6f-4f09-ab48-efdb8d9b04a5